bitfinex/quotes_BTCUSD_20240815
["timestamp","ask_amount","ask_price","bid_price","bid_amount"]
[1723689691285,0.89379,58557.0,58556.0,0.104]
[1723689691502,0.66400897,58557.0,58556.0,0.1144]
[1723689691710,0.66400897,58557.0,58556.0,0.11719494]
[1723689692133,0.42492597,58557.0,58556.0,0.1144]
[1723689692330,0.66400897,58557.0,58556.0,0.3487]
[1723689692602,0.66400897,58557.0,58556.0,0.35149494]
[1723689692741,0.057,58560.0,58556.0,0.35349494]
[1723689692941,0.057,58560.0,58557.0,0.14994949]
[1723689692942,0.11954,58558.0,58557.0,0.14994949]
[1723689693150,0.13977727,58563.0,58560.0,0.1035]
[1723689693151,0.17353,58563.0,58560.0,0.1035]
[1723689693377,0.173529,58563.0,58562.0,0.2343]
[1723689693566,0.412587,58563.0,58562.0,0.3378]
[1723689693769,0.66094974,58563.0,58562.0,0.3378]
[1723689693940,0.66094974,58563.0,58562.0,0.34061479]
[1723689694142,0.66094974,58563.0,58562.0,0.10631479]
[1723689694345,0.90000774,58563.0,58562.0,0.00281479]
[1723689694577,0.90000774,58563.0,58556.0,0.3398]
[1723689694578,0.412624,58557.0,58556.0,0.1055]
[1723689694776,0.412624,58557.0,58556.0,0.11405]
[1723689694984,0.651707,58557.0,58556.0,0.1035]
[1723689696229,0.652707,58557.0,58556.0,0.1035]
[1723689697016,0.66101288,58557.0,58556.0,0.1035]
[1723689697181,0.66101291,58557.0,58556.0,0.1035]
[1723689697584,0.67000104,58557.0,58556.0,0.1035]
[1723689697790,1.14816704,58557.0,58556.0,0.1035]
[1723689697991,1.14816704,58557.0,58544.0,0.1105]
[1723689697992,0.173566,58545.0,58544.0,0.1105]
[1723689698150,0.65183,58545.0,58544.0,0.1105]
[1723689698347,0.66113406,58545.0,58544.0,0.1105]
[1723689698755,0.00930406,58545.0,58544.0,0.1105]
[1723689699096,0.239122,58548.0,58544.0,0.1105]
[1723689699257,0.293117,58549.0,58544.0,0.1105]
[1723689699258,0.119566,58545.0,58544.0,0.1105]
[1723689699484,0.121566,58545.0,58544.0,0.1105]
[1723689699689,0.360698,58545.0,58544.0,0.1105]
[1723689700102,0.119566,58545.0,58544.0,0.1105]
[1723689700556,0.004,58548.0,58544.0,0.1115]
[1723689700778,0.001,58545.0,58544.0,0.1115]
[1723689700957,0.004,58548.0,58544.0,0.1115]
[1723689701192,0.123561,58548.0,58544.0,0.120567]
[1723689701399,0.123561,58548.0,58545.0,0.1109]
[1723689701602,0.123561,58548.0,58547.0,0.1109]
[1723689701603,0.119561,58548.0,58547.0,0.1109]
[1723689702086,0.239104,58552.0,58547.0,0.1109]
[1723689702087,0.119556,58550.0,58547.0,0.1109]
[1723689702281,0.293095,58554.0,58549.0,0.2343]
[1723689702451,0.4726,58555.0,58551.0,0.225153]
[1723689702452,0.00930431,58553.0,58551.0,0.225153]
[1723689702830,0.592146,58555.0,58553.0,0.1056]
[1723689702831,0.119547,58554.0,58553.0,0.1056]
[1723689702997,0.358642,58554.0,58553.0,0.1056]
[1723689703239,0.4726,58555.0,58553.0,0.10821632]
[1723689703647,0.12885153,58554.0,58553.0,0.10821632]
[1723689703854,0.119547,58554.0,58553.0,0.10821632]
[1723689704151,0.119547,58554.0,58553.0,0.17479245]
[1723689704358,0.12885788,58554.0,58553.0,0.17479245]
[1723689704553,0.00931088,58554.0,58553.0,0.17479245]
[1723689705209,0.12885685,58554.0,58553.0,0.17479245]
[1723689705412,0.119547,58554.0,58553.0,0.17479245]
[1723689705824,0.60704692,58554.0,58553.0,0.17479245]
[1723689706041,0.60704691,58554.0,58553.0,0.17479245]
[1723689706249,0.60704691,58554.0,58553.0,0.17579245]
[1723689706451,0.60804691,58554.0,58553.0,0.17579245]
[1723689706644,0.66104691,58554.0,58553.0,0.17479245]
[1723689706964,0.66704691,58554.0,58553.0,0.17679245]
[1723689708269,0.42795191,58554.0,58553.0,0.17679245]
[1723689708388,0.36895191,58554.0,58553.0,0.17579245]
[1723689708589,0.12985691,58554.0,58553.0,0.17579245]
[1723689708975,0.239072,58560.0,58554.0,0.119547]
[1723689709248,0.05860531,58566.0,58553.0,0.32634699]
[1723689709249,0.119532,58562.0,58560.0,0.1043]
[1723689709457,0.01732325,58566.0,58562.0,0.1043]
[1723689709458,0.239051,58565.0,58562.0,0.1043]
[1723689709711,0.119529,58563.0,58562.0,0.1043]
[1723689709904,0.12884474,58563.0,58562.0,0.1501139]
[1723689710107,0.119529,58563.0,58562.0,0.15271746]
[1723689710442,0.358587,58563.0,58562.0,0.15271746]
[1723689711229,0.119529,58563.0,58562.0,0.23661746]
[1723689711760,0.001,58565.0,58563.0,0.1019]
[1723689711761,0.120526,58565.0,58563.0,0.1019]
[1723689712036,0.0093158,58564.0,58563.0,0.28023415]
[1723689712250,0.7230825,58572.0,58567.0,0.239038]
[1723689712251,0.0114595,58572.0,58567.0,0.239038]
[1723689712454,0.0114595,58572.0,58570.0,0.1019]
[1723689712882,0.0114595,58572.0,58571.0,0.00259264]
[1723689713056,0.0114595,58572.0,58571.0,0.10449264]
[1723689713413,0.1309705,58572.0,58571.0,0.155188]
[1723689713620,0.3699925,58572.0,58571.0,0.155188]
[1723689713891,0.37931592,58572.0,58571.0,0.155188]
[1723689714099,0.3699925,58572.0,58571.0,0.155188]
[1723689714308,0.02078188,58572.0,58571.0,0.162188]
[1723689714510,0.14029288,58572.0,58571.0,0.162188]
[1723689715319,0.85735888,58572.0,58571.0,0.11149264]
[1723689715531,0.85735888,58572.0,58571.0,0.11849264]
[1723689715727,0.61833688,58572.0,58571.0,0.11149264]
[1723689715879,0.61833688,58572.0,58571.0,0.1089]
[1723689716081,0.61833688,58572.0,58571.0,0.1179]
[1723689716283,0.61833688,58572.0,58571.0,0.10438462]
[1723689716690,0.61833688,58572.0,58571.0,0.10538462]
[1723689717114,0.61833688,58572.0,58571.0,0.13935308]
[1723689717792,0.62706157,58572.0,58571.0,0.10538462]
[1723689719347,0.62706157,58572.0,58571.0,0.1029]
[1723689721039,0.62706152,58572.0,58571.0,0.1029]
[1723689721434,0.62706146,58572.0,58571.0,0.1029]
[1723689721663,0.62788346,58572.0,58571.0,0.1029]
[1723689722000,0.62788346,58572.0,58571.0,0.13662]
[1723689722466,0.62788346,58572.0,58571.0,0.1029]
[1723689723722,0.62788346,58572.0,58571.0,0.10535383]
[1723689723900,0.62788346,58572.0,58571.0,0.1029]
[1723689724121,0.62789448,58572.0,58571.0,0.1029]
[1723689726177,0.61916979,58572.0,58571.0,0.1029]
[1723689726382,0.61916979,58572.0,58571.0,0.13662]
[1723689726724,0.14112579,58572.0,58571.0,0.13662]
[1723689726931,0.14112579,58572.0,58571.0,0.22032]
[1723689727133,0.14112579,58572.0,58571.0,0.22277383]
[1723689727759,0.14113076,58572.0,58571.0,0.22277383]
[1723689727961,0.02161976,58572.0,58571.0,0.22277383]
[1723689728166,0.02161976,58572.0,58571.0,0.34228683]
[1723689728370,0.02161976,58572.0,58571.0,0.22277383]
[1723689728570,0.02161976,58572.0,58571.0,0.75286737]
[1723689728800,0.02161976,58572.0,58571.0,0.51384137]
[1723689729420,0.02161976,58572.0,58571.0,0.39432837]
[1723689729656,0.0122815,58572.0,58571.0,0.39432837]
[1723689729870,0.02162193,58572.0,58571.0,0.39432837]
[1723689730480,0.02162193,58572.0,58571.0,0.51384137]
[1723689730900,0.02162193,58572.0,58571.0,0.75286737]
[1723689731308,0.02162677,58572.0,58571.0,0.75286737]
[1723689731736,0.0122815,58572.0,58571.0,0.75286737]
[1723689731937,0.02162756,58572.0,58571.0,0.51384137]
[1723689732350,0.02162756,58572.0,58571.0,0.75286737]
[1723689732726,0.02162756,58572.0,58571.0,0.99189337]
[1723689733739,0.02162756,58572.0,58571.0,1.23091937]
[1723689733933,0.00823,58578.0,58577.0,0.358501]
[1723689734165,0.01758969,58578.0,58577.0,1.22420664]
[1723689734368,0.00823,58578.0,58577.0,1.22663984]
[1723689735450,0.00823,58598.0,58597.0,0.1011]
[1723689735651,0.01759348,58598.0,58597.0,0.1011]
[1723689736067,0.01759669,58598.0,58597.0,0.10352351]
[1723689736272,0.13705469,58598.0,58597.0,0.15810546]
[1723689736403,0.13705469,58598.0,58597.0,0.10352351]
[1723689737223,0.01759669,58598.0,58597.0,0.27507805]
[1723689737430,0.01759669,58598.0,58597.0,0.63345805]
[1723689737431,0.00823,58598.0,58597.0,0.63345805]
[1723689738071,0.00823,58598.0,58597.0,0.63745805]
[1723689738273,0.00823,58598.0,58597.0,0.73348706]
[1723689738477,0.00823,58598.0,58597.0,0.37510706]
[1723689738715,0.127688,58598.0,58597.0,0.37510706]
[1723689738911,0.127688,58598.0,58597.0,0.37810706]
[1723689739256,0.2389,58602.0,58598.0,0.1078]
[1723689739467,0.00887219,58605.0,58600.0,0.3421]
[1723689739468,0.00937333,58601.0,58600.0,0.3421]
[1723689739666,2.12573074,58613.0,58601.0,0.1078]
[1723689739667,0.119448,58603.0,58601.0,0.1078]
[1723689739988,0.00937365,58602.0,58601.0,0.1078]
[1723689740403,0.0004809,58607.0,58604.0,0.1059]
[1723689740607,0.0004809,58607.0,58606.0,0.3402]
[1723689740827,0.0004809,58607.0,58606.0,0.71483019]
[1723689741006,0.0004809,58607.0,58606.0,0.95371319]
[1723689741257,0.0004809,58607.0,58606.0,1.19259619]
[1723689741869,0.0004809,58607.0,58606.0,0.95371319]
[1723689741985,0.0004809,58607.0,58606.0,0.95671319]
[1723689742186,0.0004809,58607.0,58606.0,0.96171319]
[1723689742410,0.0004809,58607.0,58606.0,1.20059619]
[1723689742605,0.0004809,58607.0,58606.0,0.96171319]
[1723689742801,0.1199199,58607.0,58606.0,0.43183465]
[1723689743007,0.1199199,58607.0,58606.0,0.3482]
[1723689743207,0.5976779,58607.0,58606.0,0.1139]
[1723689743656,0.5976779,58607.0,58606.0,0.1059]
[1723689743855,0.5976779,58607.0,58606.0,0.1119]
[1723689744107,0.5976779,58607.0,58606.0,0.1149]
[1723689744243,0.8365569,58607.0,58606.0,0.1089]
[1723689744421,0.8365569,58607.0,58606.0,0.1099]
[1723689744636,0.3587989,58607.0,58606.0,0.35519]
[1723689744838,0.1199199,58607.0,58606.0,0.35819]
[1723689745046,0.5976779,58607.0,58606.0,0.35819]
[1723689745349,0.5976779,58607.0,58606.0,0.35119]
[1723689745779,0.5976779,58607.0,58606.0,0.35353032]
[1723689745983,0.3587989,58607.0,58606.0,0.35353032]
[1723689746186,0.1199199,58607.0,58606.0,0.35353032]
[1723689747719,0.1207419,58607.0,58606.0,0.35353032]
[1723689747921,0.3596209,58607.0,58606.0,0.35353032]
[1723689748123,0.3596209,58607.0,58606.0,0.3402]
[1723689748325,0.3596209,58607.0,58606.0,0.34254032]
[1723689749479,0.5984999,58607.0,58606.0,0.34254032]
[1723689750142,0.3596209,58607.0,58606.0,0.34254032]
[1723689751303,0.5984999,58607.0,58606.0,0.34254032]
[1723689751504,0.3596209,58607.0,58606.0,0.34254032]
[1723689751939,0.5984999,58607.0,58606.0,0.34254032]
[1723689752113,0.5984999,58607.0,58606.0,0.37679435]
[1723689752891,0.5984999,58607.0,58606.0,0.10824032]
[1723689753293,0.60787513,58607.0,58606.0,0.10824032]
[1723689753523,1.63675413,58607.0,58606.0,0.10824032]
[1723689753717,1.63675413,58607.0,58606.0,0.1059]
[1723689753920,1.69165413,58607.0,58606.0,0.1059]
[1723689754265,0.59732,58595.0,58594.0,0.2343]
[1723689754680,0.119473,58591.0,58590.0,0.1065]
[1723689754889,0.358392,58595.0,58594.0,0.10915243]
[1723689755345,0.413292,58595.0,58594.0,0.10915243]
[1723689755547,1.07207396,58595.0,58594.0,0.00265243]
[1723689755748,1.07207396,58595.0,58579.0,0.0009042]
[1723689755749,0.63540884,58595.0,58579.0,0.0009042]
[1723689755953,0.358477,58581.0,58580.0,0.1034]
[1723689756204,1.13970342,58581.0,58580.0,0.10569193]
[1723689756391,1.13970038,58581.0,58580.0,0.10569193]
[1723689756596,1.13970038,58581.0,58580.0,0.1034]
[1723689757007,0.60683038,58581.0,58580.0,0.1034]
[1723689757192,0.60683038,58581.0,58580.0,0.13726042]
[1723689757616,0.60683038,58581.0,58580.0,0.10569193]
[1723689758021,0.60883038,58581.0,58580.0,0.10669193]
[1723689758345,0.84781538,58581.0,58580.0,0.10669193]
[1723689758879,0.01136838,58581.0,58580.0,0.10669193]
[1723689759067,0.002,58581.0,58580.0,0.10669193]
[1723689759297,0.002,58581.0,58580.0,0.14959154]
[1723689759669,0.121492,58581.0,58580.0,0.14959154]
[1723689760323,0.360477,58581.0,58580.0,0.14959154]
[1723689760523,0.119492,58581.0,58580.0,0.14949684]
[1723689760728,0.238973,58584.0,58580.0,0.14949684]
[1723689760931,0.238973,58584.0,58583.0,0.3417]
[1723689761136,0.358459,58584.0,58583.0,0.3417]
[1723689761373,0.358459,58584.0,58583.0,0.34399193]
[1723689761705,0.119486,58584.0,58583.0,0.34399193]
[1723689761935,0.11948,58587.0,58584.0,0.1066]
[1723689762159,0.12885306,58586.0,58585.0,0.17239836]
[1723689762517,0.12885306,58586.0,58585.0,0.17469029]
[1723689763327,0.12884862,58586.0,58585.0,0.17469029]
[1723689764969,0.12984862,58586.0,58585.0,0.17469029]
[1723689765167,0.60777662,58586.0,58585.0,0.10889193]
[1723689765371,0.84674062,58586.0,58585.0,0.10889193]
[1723689765777,0.84674062,58586.0,58585.0,0.1066]
[1723689766260,0.837375,58586.0,58585.0,0.1066]
[1723689766855,0.598411,58586.0,58585.0,0.1066]
[1723689767011,0.597411,58586.0,58585.0,0.1066]
[1723689767211,0.597411,58586.0,58585.0,0.14069]
[1723689767432,0.60778669,58586.0,58585.0,0.14302874]
[1723689767636,0.598411,58586.0,58585.0,0.14302874]
[1723689767832,0.60778666,58586.0,58585.0,0.14302874]
[1723689768252,0.60778666,58586.0,58585.0,0.10893874]
[1723689768656,0.84675066,58586.0,58585.0,0.10893874]
[1723689769030,0.85612894,58586.0,58585.0,0.10893874]
[1723689769235,1.09509294,58586.0,58585.0,0.1066]
[1723689769436,0.836447,58581.0,58580.0,0.1014053]
[1723689769633,1.16845498,58581.0,58580.0,0.1014053]
[1723689769858,1.08481028,58581.0,58580.0,0.1014053]
[1723689770662,0.84682528,58581.0,58580.0,0.1024053]
[1723689773090,0.84682026,58581.0,58580.0,0.1024053]
[1723689773290,0.36885026,58581.0,58580.0,0.1024053]
[1723689773495,0.01037326,58581.0,58580.0,0.27631957]
[1723689773730,0.01037326,58581.0,58580.0,0.33612195]
[1723689774045,0.001,58581.0,58580.0,0.45561595]
[1723689774867,0.001,58581.0,58580.0,0.33612195]
[1723689775064,0.120492,58581.0,58580.0,0.33612195]
[1723689775850,0.120492,58581.0,58580.0,0.10476503]
[1723689776051,0.359477,58581.0,58580.0,0.10476503]
[1723689776437,0.598462,58581.0,58580.0,0.10476503]
[1723689776920,0.597462,58581.0,58580.0,0.10376503]
[1723689777331,0.360477,58581.0,58580.0,0.10376503]
[1723689777500,0.121492,58581.0,58580.0,0.14631195]
[1723689777752,0.119491,58582.0,58580.0,0.04881195]
[1723689777949,0.119491,58582.0,58581.0,0.1063]
[1723689778159,0.119491,58582.0,58581.0,0.10864569]
[1723689778392,0.358472,58582.0,58581.0,0.1684757]
[1723689780499,0.3678532,58582.0,58581.0,0.1684757]
[1723689781262,0.1288722,58582.0,58581.0,0.1684757]
[1723689781835,0.1288722,58582.0,58581.0,0.1694757]
[1723689782044,0.3678532,58582.0,58581.0,0.1694757]
[1723689782249,0.1288722,58582.0,58581.0,0.1694757]
[1723689782699,0.3678532,58582.0,58581.0,0.1694757]
[1723689782898,0.1288722,58582.0,58581.0,0.1694757]
[1723689783441,0.0093812,58582.0,58581.0,0.1694757]
[1723689784744,0.0093812,58582.0,58581.0,0.170381]
[1723689785616,0.0093812,58582.0,58581.0,0.46142754]
[1723689786205,0.0093812,58582.0,58581.0,0.70041254]
[1723689786432,0.0093812,58582.0,58581.0,0.46142754]
[1723689786794,0.0093812,58582.0,58581.0,0.78351254]
[1723689786997,0.119474,58590.0,58586.0,0.119482]
[1723689787196,0.119474,58590.0,58581.0,0.31873554]
[1723689787197,0.00938788,58589.0,58587.0,0.18350274]
[1723689787400,0.119473,58591.0,58587.0,0.18350274]
[1723689787401,0.119474,58590.0,58589.0,0.1044]
[1723689787600,0.12886204,58590.0,58589.0,0.1044]
[1723689787782,0.36781004,58590.0,58589.0,0.10673883]
[1723689788539,0.36780403,58590.0,58589.0,0.10673883]
[1723689788869,0.36780403,58590.0,58589.0,0.24879299]
[1723689788870,0.36980403,58590.0,58589.0,0.24879299]
[1723689789072,0.01138203,58590.0,58589.0,0.77877553]
[1723689789392,0.119458,58598.0,58593.0,0.119466]
[1723689789594,0.119458,58598.0,58597.0,0.3433]
[1723689789968,0.00937733,58598.0,58597.0,0.43522995]
[1723689790117,0.12883533,58598.0,58597.0,0.5078547]
[1723689790645,0.01137733,58598.0,58597.0,0.5078547]
[1723689790896,0.01137733,58598.0,58597.0,0.5088547]
[1723689791846,0.00937733,58598.0,58597.0,0.6283147]
[1723689792121,0.000823,58600.0,58599.0,0.119455]
[1723689792385,0.000823,58600.0,58599.0,0.63612054]
[1723689792650,0.000823,58600.0,58599.0,0.39952113]
[1723689792953,0.000823,58600.0,58599.0,0.63843213]
[1723689793656,0.000823,58600.0,58599.0,0.39952113]
[1723689793934,0.000823,58600.0,58599.0,0.67517509]
[1723689794161,0.000823,58600.0,58599.0,0.67817509]
[1723689795129,0.000823,58600.0,58599.0,0.43926409]
[1723689797096,0.120276,58600.0,58599.0,0.31980909]
[1723689797333,0.120276,58600.0,58599.0,0.11351159]
[1723689797334,0.836997,58600.0,58599.0,0.11351159]
[1723689797582,0.8463885,58600.0,58599.0,0.11351159]
[1723689797790,0.8463885,58600.0,58599.0,0.1112]
[1723689797791,0.90229299,58600.0,58599.0,0.1112]
[1723689798054,0.000823,58600.0,58599.0,0.97244054]
[1723689798267,0.000823,58600.0,58599.0,0.73352954]
[1723689798440,0.000823,58600.0,58599.0,0.97244054]
[1723689798644,0.000823,58600.0,58599.0,0.97044054]
[1723689798843,0.000823,58600.0,58599.0,0.60907454]
[1723689799051,0.002823,58600.0,58599.0,0.72852954]
[1723689799211,0.002823,58600.0,58599.0,0.96744054]
[1723689799635,0.000823,58600.0,58599.0,0.96744054]
[1723689799879,0.000823,58600.0,58599.0,0.96944054]
[1723689800881,0.000823,58600.0,58599.0,0.97244054]
[1723689801214,0.000823,58600.0,58599.0,0.1112]
[1723689801215,0.65399,58600.0,58599.0,0.1112]
[1723689801412,0.66338742,58600.0,58599.0,0.1112]
[1723689801712,0.90229442,58600.0,58599.0,0.1112]
[1723689802161,0.90229442,58600.0,58593.0,0.1078]
[1723689802162,0.59733,58594.0,58593.0,0.1078]
[1723689802332,0.00939742,58594.0,58593.0,0.44188]
[1723689802676,0.00939742,58594.0,58593.0,0.33408]
[1723689803221,0.00939742,58594.0,58593.0,0.97183854]
[1723689803427,0.000823,58600.0,58597.0,0.1078]
[1723689803428,0.120277,58600.0,58597.0,0.1078]
[1723689803623,0.00939773,58599.0,58597.0,0.227259]
[1723689803854,0.120276,58600.0,58599.0,0.1078]
[1723689804058,0.12967346,58600.0,58599.0,0.1078]
[1723689804481,0.01022046,58600.0,58599.0,0.1078]
[1723689804879,0.01022014,58600.0,58599.0,0.1078]
[1723689805165,0.01222014,58600.0,58599.0,0.1078]
[1723689805388,0.01222014,58600.0,58599.0,0.18012059]
[1723689805587,0.01222014,58600.0,58599.0,0.47113013]
[1723689805588,0.01022014,58600.0,58599.0,0.47113013]
[1723689805789,0.000823,58600.0,58599.0,0.79164113]
[1723689805992,0.002823,58600.0,58599.0,1.03055213]
[1723689806428,0.002823,58600.0,58599.0,1.26946313]
[1723689806873,0.0013029,58607.0,58606.0,0.91879]
[1723689807014,0.0013029,58607.0,58606.0,1.52042354]
[1723689807219,0.0013029,58607.0,58606.0,1.62042354]
[1723689808271,0.0013029,58607.0,58606.0,1.62442354]
[1723689808484,0.0013029,58607.0,58606.0,1.64742354]
[1723689809737,0.0013029,58607.0,58606.0,1.65653854]
[1723689810154,0.00823,58611.0,58606.0,1.65653854]
[1723689810155,0.00823,58611.0,58610.0,0.836034]
[1723689810362,0.00823,58611.0,58610.0,1.14771639]
[1723689811293,0.00823,58611.0,58610.0,1.24801639]
[1723689811526,0.0002,58619.0,58618.0,0.597085]
[1723689811734,0.00020618,58622.0,58621.0,0.552733]
[1723689811991,0.00011,58626.0,58624.0,0.791525]
[1723689812188,0.00011,58626.0,58624.0,1.45891544]
[1723689813862,0.00011,58626.0,58624.0,1.58191544]
[1723689814086,0.00011,58626.0,58624.0,0.84248544]
[1723689814288,0.00011,58626.0,58624.0,0.62308044]
[1723689814398,0.00011,58626.0,58624.0,0.74248544]
[1723689814594,0.00011,58626.0,58624.0,0.63608044]
[1723689814798,0.00011,58626.0,58624.0,0.99429544]
[1723689815018,0.00011,58626.0,58624.0,0.75548544]
[1723689815374,0.00011,58626.0,58624.0,1.00629544]
[1723689816145,0.00011,58626.0,58624.0,1.48391544]
[1723689816351,0.00011,58626.0,58624.0,1.47091544]
[1723689816780,0.00011,58626.0,58624.0,1.23210544]
[1723689816980,0.00011,58626.0,58624.0,0.75448544]
[1723689817184,0.00011,58626.0,58624.0,0.76148544]
[1723689817356,0.00011,58626.0,58624.0,1.23910544]
[1723689817702,0.00011,58626.0,58624.0,0.98693563]
[1723689817874,0.00011,58626.0,58624.0,0.99993563]
[1723689819045,0.00011,58626.0,58624.0,0.64172063]
[1723689819246,0.00011,58626.0,58624.0,0.12384019]
[1723689819247,0.366427,58625.0,58624.0,0.12384019]
[1723689819471,0.61462551,58625.0,58624.0,0.12384019]
[1723689819651,0.61462553,58625.0,58624.0,0.12384019]
[1723689820143,0.62386364,58625.0,58624.0,0.11122421]
[1723689820780,0.62386364,58625.0,58624.0,0.09884019]
[1723689822020,0.01861353,58625.0,58624.0,0.33314019]
[1723689822227,0.128622,58625.0,58624.0,0.59239473]
[1723689822436,0.00922,58625.0,58624.0,0.95060973]
[1723689822660,0.00822,58625.0,58624.0,1.04565622]
[1723689823054,0.01022,58625.0,58624.0,0.68744122]
[1723689823478,0.00822,58625.0,58624.0,0.80684622]
[1723689823693,0.00822,58625.0,58624.0,1.04565622]
[1723689823846,0.00822,58625.0,58624.0,1.04765622]
[1723689824250,0.00822,58625.0,58624.0,1.28946622]
[1723689824458,0.00822,58625.0,58624.0,1.05065622]
[1723689824658,0.00822,58625.0,58624.0,1.28946622]
[1723689824855,0.00822,58625.0,58624.0,1.05065622]
[1723689830182,0.00822,58625.0,58624.0,1.28946622]
[1723689830536,0.00822,58625.0,58624.0,1.52827622]
[1723689833484,0.00822,58625.0,58624.0,1.29397622]
[1723689833717,0.00822,58625.0,58624.0,1.28946622]
[1723689836395,0.127622,58625.0,58624.0,0.33814019]
[1723689836593,0.37581902,58625.0,58624.0,0.33814019]
[1723689837212,0.61462402,58625.0,58624.0,0.33814019]
[1723689837414,0.61462485,58625.0,58624.0,0.33814019]
[1723689837835,0.61462514,58625.0,58624.0,0.33814019]
[1723689838011,0.37582014,58625.0,58624.0,0.37204474]
[1723689838869,0.366427,58625.0,58624.0,0.33814019]
[1723689839084,0.37582014,58625.0,58624.0,0.33814019]
[1723689840635,0.61462514,58625.0,58624.0,0.10384019]
[1723689840826,0.605232,58625.0,58624.0,0.10384019]
[1723689841132,0.61462524,58625.0,58624.0,0.10384019]
[1723689841333,0.61462527,58625.0,58624.0,0.10384019]
[1723689841729,0.61462527,58625.0,58624.0,0.34861474]
[1723689841730,0.01761327,58625.0,58624.0,0.34861474]
[1723689841966,0.84187981,58625.0,58624.0,0.005]
[1723689842141,0.90913027,58625.0,58624.0,0.005]
[1723689842440,1.0371922,58625.0,58624.0,0.005]
[1723689842672,0.55960435,58625.0,58624.0,0.102]
[1723689842881,0.67032527,58625.0,58624.0,0.102]
[1723689843079,0.85343027,58625.0,58624.0,0.102]
[1723689843315,0.85343027,58625.0,58624.0,0.099]
[1723689843491,0.85443027,58625.0,58624.0,0.099]
[1723689843702,0.61562616,58625.0,58624.0,0.097]
[1723689843905,0.61662616,58625.0,58624.0,0.097]
[1723689844328,0.85543116,58625.0,58624.0,0.097]
[1723689845004,0.89563689,58625.0,58624.0,0.097]
[1723689845208,0.85543116,58625.0,58624.0,0.097]
[1723689845407,0.85543116,58625.0,58624.0,0.0979053]
[1723689846816,1.62543116,58625.0,58624.0,0.0979053]
[1723689847378,0.85543123,58625.0,58624.0,0.0979053]
[1723689847583,1.76250822,58625.0,58624.0,0.0979053]
[1723689847786,1.76250822,58625.0,58624.0,0.0009053]
[1723689847787,2.22456789,58625.0,58624.0,0.0009053]
[1723689847995,2.31149657,58625.0,58624.0,0.0009053]
[1723689848468,2.48305111,58625.0,58624.0,0.0009053]
[1723689848678,0.23885,58614.0,58613.0,0.0877]
[1723689848880,1.00335563,58614.0,58613.0,0.0877]
[1723689849056,1.47168303,58614.0,58613.0,0.0877]
[1723689849266,1.58303411,58614.0,58613.0,0.0877]
[1723689849882,1.75458865,58614.0,58613.0,0.0877]
[1723689850087,1.095483,58611.0,58610.0,0.00020539]
[1723689850290,2.39107204,58611.0,58610.0,0.00020539]
[1723689850492,3.0792736,58611.0,58610.0,0.00020539]
[1723689850625,3.25082814,58611.0,58610.0,0.00020539]
[1723689850852,3.24143391,58611.0,58610.0,0.00020539]
[1723689851059,3.25083213,58611.0,58610.0,0.00020539]
[1723689851265,2.61076954,58611.0,58610.0,0.00020539]
[1723689851473,2.4577924,58611.0,58610.0,0.00020539]
[1723689851900,2.4657924,58611.0,58610.0,0.00120539]
[1723689852881,2.44726828,58611.0,58610.0,0.09710539]
[1723689853098,1.16684274,58611.0,58610.0,0.09710539]
[1723689853260,1.0896598,58611.0,58610.0,0.09710539]
[1723689853514,1.0896598,58611.0,58610.0,0.09810539]
[1723689853515,0.8574181,58611.0,58610.0,0.09810539]
[1723689853876,0.93389713,58611.0,58610.0,0.09810539]
[1723689854078,1.24892434,58611.0,58610.0,0.09810539]
[1723689854278,1.20480395,58611.0,58610.0,0.09810539]
[1723689854489,1.1773691,58611.0,58610.0,0.09810539]
[1723689854939,1.30480393,58611.0,58610.0,0.09810539]
[1723689855137,0.9574174,58611.0,58610.0,0.09810539]
[1723689855949,1.03386995,58611.0,58610.0,0.09810539]
[1723689856140,1.09632415,58611.0,58610.0,0.09810539]
[1723689856548,1.33518715,58611.0,58610.0,0.09810539]
[1723689856755,1.1727767,58611.0,58610.0,0.09810539]
[1723689856977,1.09632415,58611.0,58610.0,0.09810539]
[1723689857188,1.03382111,58611.0,58610.0,0.09810539]
[1723689857382,1.00835197,58611.0,58610.0,0.09810539]
[1723689857615,0.9574174,58611.0,58610.0,0.09901069]
[1723689857809,0.8574174,58611.0,58610.0,0.09901069]
[1723689858093,0.84802,58611.0,58610.0,0.09901069]
[1723689858310,0.85741695,58611.0,58610.0,0.09901069]
[1723689858946,0.85741695,58611.0,58610.0,0.17231069]
[1723689859513,0.61855395,58611.0,58610.0,0.17231069]
[1723689859922,0.85741695,58611.0,58610.0,0.17231069]
[1723689860174,0.85741695,58611.0,58610.0,0.0988053]
[1723689861668,0.609157,58611.0,58610.0,0.0988053]
[1723689861891,0.02139647,58611.0,58610.0,0.1742053]
[1723689862096,0.012,58611.0,58610.0,0.2936383]
[1723689862312,0.012,58611.0,58610.0,0.34575984]
[1723689862799,1.8350076,58611.0,58610.0,3e-07]
[1723689862997,1.8350076,58611.0,58581.0,0.0009053]
[1723689862998,0.836174,58600.0,58591.0,0.0721]
[1723689863210,0.836174,58600.0,58583.0,0.51466362]
[1723689863211,2.389156,58600.0,58583.0,0.51466362]
[1723689863417,2.389156,58600.0,58581.0,0.0009053]
[1723689863418,0.836433,58582.0,58581.0,0.0009053]
[1723689863589,1.87481006,58582.0,58581.0,0.0009053]
[1723689863789,2.2853456,58582.0,58581.0,0.0009053]
[1723689863989,2.2853456,58582.0,58579.0,0.0009042]
[1723689863990,0.836461,58580.0,58579.0,0.0009042]
[1723689864189,3.43467311,58580.0,58579.0,2e-07]
[1723689864394,1.075689,58567.0,58551.0,0.009053]
[1723689864684,2.1466396,58567.0,58551.0,0.009053]
[1723689864850,3.703795,58567.0,58553.0,0.51556782]
[1723689865064,2.890795,58567.0,58553.0,0.0009042]
[1723689865266,3.62800841,58567.0,58553.0,0.0009042]
[1723689865404,3.92065041,58567.0,58553.0,0.0009042]
[1723689865611,0.846661,58566.0,58565.0,2e-07]
[1723689865810,0.846661,58566.0,58553.0,0.0009042]
[1723689865811,0.846689,58564.0,58563.0,2e-07]
[1723689866013,0.846689,58564.0,58553.0,0.0009042]
[1723689866014,0.597727,58555.0,58553.0,0.0009042]
[1723689866216,4.24004056,58555.0,58553.0,0.0009042]
[1723689866417,3.45004105,58555.0,58553.0,0.0009042]
[1723689866645,3.46277764,58555.0,58553.0,0.0009042]
[1723689866853,3.46277764,58555.0,58551.0,0.009053]
[1723689866854,3.46277764,58555.0,58551.0,2e-07]